fUSD/lending_fUSD_20241024
["ID","MTS","AMOUNT","RATE_DAILY","PERIOD"]
[340730739,1729740648159,-500.0,0.00059962,120]
[340730740,1729740648169,-208.67133181,0.00059962,120]
[340730741,1729740648178,-523.14062203,0.00059962,7]
[340730742,1729740648188,-500.0,0.00059962,120]
[340730743,1729740648197,-500.0,0.00059962,120]
[340730744,1729740648206,-500.0,0.00059962,120]
[340730745,1729740648216,-809.34,0.00059962,120]
[340730746,1729740648227,-2783.70111018,0.00059962,120]
[340730747,1729740648249,-2477.36888982,0.00059962,120]
[340730748,1729740648259,-5261.07,0.00059962,120]
[340730749,1729740648269,-187.08675076,0.00059962,120]
[340730750,1729740648279,-332.6,0.00059962,120]
[340730751,1729740648289,-332.6,0.00059962,120]
[340730752,1729740648299,-552.77,0.00059962,120]
[340730753,1729740648308,-552.77,0.00059962,120]
[340730754,1729740648318,-322.83068165,0.00059962,120]
[340730756,1729740871049,250.0,0.0001,2]
[340730758,1729741637434,-150.0,0.00015228,2]
[340730759,1729741637457,-157.47087685,0.00015242,2]
[340730760,1729741637478,-161.46,0.00015342,2]
[340730761,1729741637501,-165.87,0.00015342,2]
[340730762,1729741637522,-166.0,0.000315,2]
[340730763,1729741637542,-586.98627396,0.000315,2]
[340730764,1729741831497,-150.0,0.00015221,2]
[340730765,1729741831508,-635.42033485,0.0004,7]
[340730766,1729741831520,-4787.60419941,0.0004,7]
[340730767,1729741831531,-784.65653678,0.0004,7]
[340730768,1729741831543,-2130.44985288,0.0004,7]
[340730769,1729741831555,-827.13712285,0.0004,7]
[340730770,1729741831566,-12450.73195323,0.0004,7]
[340730771,1729741831576,-178.77,0.0005475,2]
[340730772,1729741831586,-150.0,0.00054998,9]
[340730773,1729741831596,-517.28730726,0.00054999,2]
[340730774,1729741831606,-350.36042952,0.00054999,120]
[340730775,1729741831616,-150.99,0.00054999,30]
[340730776,1729741831625,-750.94,0.00054999,2]
[340730777,1729741831635,-12534.82,0.00054999,30]
[340730778,1729741831644,-455.83,0.00054999,2]
[340730779,1729741831654,-231.0,0.00055,120]
[340730780,1729741831663,-40285.27030999,0.00055,120]
[340730781,1729741831675,-2909.42136035,0.00055,120]
[340730782,1729741831686,-21347.0306,0.00055,120]
[340730783,1729741831698,-231771.4857866,0.00055,120]
[340730784,1729741831707,-358.48,0.00055242,2]
[340730785,1729741831716,-200.0,0.00055336,2]
[340730786,1729741831726,-250.0,0.0005551,120]
[340730787,1729741831736,-5564.34,0.0005554,2]
[340730788,1729741831745,-155.41,0.00055596,2]
[340730789,1729741831754,-14408.2,0.00055663,2]
[340730790,1729741831763,-4247.26,0.0005568,2]
[340730791,1729741831772,-1852.42,0.00055854,2]
[340730792,1729741831782,-3169.98,0.00056039,2]
[340730793,1729741831791,-1240.24481608,0.00056275,15]
[340730794,1729741831801,-1039.8,0.00056668,30]
[340730795,1729741831810,-164.41,0.00056782,120]
[340730796,1729741831820,-1204.31,0.00056843,2]
[340730797,1729741831829,-1595.4,0.00056901,2]
[340730798,1729741831840,-150.99,0.00056901,2]
[340730799,1729741831849,-178.77,0.00057014,2]
[340730800,1729741831859,-169.29,0.00057052,2]
[340730801,1729741831868,-250.0,0.00057086,120]
[340730802,1729741831877,-12491.93,0.00057134,7]
[340730803,1729741831886,-8232.76,0.00057217,2]
[340730804,1729741831897,-533.78,0.00057333,2]
[340730805,1729741831907,-1000.0,0.00057397,120]
[340730806,1729741831917,-313.21704352,0.00057434,2]
[340730807,1729741831926,-297.92003444,0.00057434,29]
[340730808,1729741831936,-18838.06,0.00057487,2]
[340730809,1729741831946,-829.637,0.00057533,112]
[340730810,1729741831955,-173.331,0.00057533,112]
[340730811,1729741831965,-500.0,0.00057534,120]
[340730812,1729741831975,-500.0,0.00057534,120]
[340730813,1729741831984,-500.0,0.00057534,120]
[340730814,1729741831994,-500.0,0.00057534,120]
[340730815,1729741832003,-511.61835033,0.00057534,120]
[340730816,1729741832012,-500.0,0.00057534,120]
[340730817,1729741832021,-500.0,0.00057534,120]
[340730818,1729741832030,-500.0,0.00057534,120]
[340730819,1729741832039,-500.86515227,0.00057534,120]
[340730820,1729741832048,-500.0,0.00057534,120]
[340730821,1729741832057,-519.16901938,0.00057534,120]
[340730823,1729741832066,-500.0,0.00057534,120]
[340730824,1729741832075,-503.06856684,0.00057534,120]
[340730825,1729741832085,-502.71638214,0.00057534,120]
[340730827,1729741832094,-508.17321703,0.00057534,120]
[340730829,1729741832103,-500.0,0.00057534,120]
[340730831,1729741832112,-750.96,0.00057534,120]
[340730833,1729741832122,-500.0,0.00057534,120]
[340730834,1729741832131,-506.59572422,0.00057534,120]
[340730836,1729741832141,-505.4758509,0.00057534,120]
[340730838,1729741832150,-504.9317983,0.00057534,120]
[340730840,1729741832159,-516.98570889,0.00057534,120]
[340730842,1729741832169,-503.1060135,0.00057534,120]
[340730844,1729741832179,-504.5711367,0.00057534,120]
[340730846,1729741832188,-509.97747966,0.00057534,120]
[340730848,1729741832198,-524.15634293,0.00057534,120]
[340730850,1729741832208,-510.6840489,0.00057534,120]
[340730852,1729741832217,-513.97727196,0.00057534,120]
[340730854,1729741832227,-560.59329606,0.00057534,60]
[340730856,1729741832236,-502.69383706,0.00057534,120]
[340730858,1729741832245,-248.01848707,0.00057534,120]
[340730860,1729741832255,-500.0,0.00057534,120]
[340730862,1729741832264,-229.03051487,0.00057534,120]
[340730864,1729741832274,-500.0,0.00057534,120]
[340730866,1729741832283,-500.0,0.00057534,120]
[340730868,1729741832293,-329.84724924,0.00057534,7]
[340730870,1729741832302,-264.26406715,0.00057534,120]
[340730872,1729741832312,-579.32,0.00057534,120]
[340730874,1729741832321,-500.0,0.00057534,120]
[340730876,1729741832331,-601.04,0.00057534,120]
[340730878,1729741832344,-520.06,0.00057534,120]
[340730880,1729741832354,-500.0,0.00057534,14]
[340730882,1729741832365,-760.28,0.00057534,120]
[340730884,1729741832374,-517.65986687,0.00057534,120]
[340730886,1729741832385,-500.47,0.00057534,120]
[340730888,1729741832394,-500.0,0.00057534,120]
[340730890,1729741832404,-728.41,0.00057534,120]
[340730892,1729741832415,-500.0,0.00057534,120]
[340730894,1729741832424,-543.78,0.00057534,120]
[340730896,1729741832434,-500.0,0.00057534,120]
[340730898,1729741832443,-518.0733367,0.00057534,120]
[340730900,1729741832452,-237.36578622,0.00057534,120]
[340730902,1729741832462,-1240.24481602,0.00057567,15]
[340730904,1729741832471,-17141.21,0.00058468,7]
[340730906,1729741832481,-1240.24481602,0.00058858,15]
[340730907,1729741832490,-152.0,0.00058973,3]
[340730909,1729741832500,-313.21704352,0.00059242,2]
[340730911,1729741832509,-682.0,0.00059254,30]
[340730913,1729741832518,-178.77,0.00059278,2]
[340730915,1729741832528,-258335.22062981,0.00059553,7]
[340730918,1729741832541,-148812.1225,0.00059553,7]
[340730920,1729741832553,-696.63711264,0.00059553,7]
[340730922,1729741832564,-517.85511205,0.00059553,7]
[340730924,1729741832575,-1273.0286153,0.00059553,7]
[340730926,1729741832586,-2381.48970547,0.00059553,7]
[340730929,1729741832608,-6725.89632473,0.00059553,7]
[340730931,1729741832618,-361.6791349,0.00059563,2]
[340730934,1729741832630,-3199.4285651,0.00059563,2]
[340730936,1729741832639,-965.0504,0.00059653,2]
[340730937,1729741832649,-377.77494709,0.00059662,31]
[340730939,1729741832658,-500.47,0.00059662,120]
[340730942,1729741832668,-728.41,0.00059662,120]
[340730943,1729741832678,-543.78,0.00059662,120]
[340730944,1729741832688,-500.0,0.00059662,120]
[340730945,1729741832697,-5902.77042778,0.00059663,2]
[340730946,1729741832709,-33737.09403308,0.00059663,2]
[340730947,1729741832721,-1240.0,0.00059663,2]
[340730948,1729741832733,-482.73538408,0.00059663,2]
[340730953,1729741837702,-1470.8043,0.00059663,2]
[340730954,1729741837714,-267.86350014,0.00059663,2]
[340730955,1729741837726,-1803.988746,0.00059663,2]
[340730956,1729741837925,-12204.054775,0.00059663,2]
[340730957,1729741838009,-10653.71556938,0.00059663,2]
[340730960,1729741838021,-902.26196454,0.00059663,2]
[340730961,1729741838032,-99.10326984,0.00059753,2]
[340730962,1729741839491,-500.0,0.00057534,120]
[340730963,1729741839501,-70.06783582,0.00059662,120]
[340730964,1729741839814,-429.93216418,0.00059662,120]
[340730965,1729741839826,-4265.23990699,0.00059753,2]
[340730986,1729741845866,-500.0,0.00057534,120]
[340730987,1729741845876,-1044.32,0.00057534,120]
[340730988,1729741845886,-42.01632317,0.00059753,2]
[340730989,1729741845895,-1306.4896,0.00059753,2]
[340730990,1729741845905,-4020.4472,0.00059753,2]
[340730991,1729741845914,-153.64,0.00059753,120]
[340730992,1729741845923,-214.78971449,0.00059753,7]
[340730993,1729741845933,-152.70615193,0.00059753,38]
[340730994,1729741845943,-503.19545455,0.00059762,120]
[340730995,1729741845952,-500.0,0.00059762,120]
[340730996,1729741845962,-277.16,0.00059762,120]
[340730997,1729741845971,-500.0,0.00059762,120]
[340730998,1729741845981,-504.6960775,0.00059762,120]
[340730999,1729741845990,-504.92828584,0.00059762,120]
[340731000,1729741845999,-509.29265723,0.00059762,120]
[340731001,1729741846009,-500.0,0.00059762,120]
[340731002,1729741846018,-513.28114356,0.00059762,120]
[340731003,1729741846028,-505.78864308,0.00059762,120]
[340731004,1729741846038,-506.35308301,0.00059762,120]
[340731005,1729741846048,-503.15052882,0.00059762,120]
[340731006,1729741846057,-552.28863824,0.00059762,120]
[340731007,1729741846067,-624.70107462,0.00059762,120]
[340731008,1729741846076,-232.65405128,0.00059762,120]
[340731009,1729741846086,-507.73298342,0.00059762,120]
[340731010,1729741846095,-323.25550652,0.00059762,120]
[340731011,1729741846104,-500.0,0.00059762,120]
[340731012,1729741846113,-506.56841068,0.00059762,120]
[340731013,1729741846123,-502.72757821,0.00059762,120]
[340731014,1729741846132,-500.0,0.00059762,120]
[340731015,1729741846141,-569.89999072,0.00059762,120]
[340731016,1729741846151,-500.0,0.00059762,120]
[340731017,1729741846161,-500.0,0.00059762,120]
[340731018,1729741846171,-500.0,0.00059762,120]
[340731019,1729741846181,-503.7462483,0.00059762,120]
[340731020,1729741846191,-541.00372593,0.00059762,120]
[340731021,1729741846201,-500.0,0.00059762,120]
[340731022,1729741846211,-523.30797997,0.00059762,120]
[340731023,1729741846220,-312.93326007,0.00059762,120]
[340731024,1729741846230,-530.24856696,0.00059762,120]
[340731025,1729741846241,-567.20046584,0.00059762,120]
[340731026,1729741846251,-383.3461757,0.00059762,120]
[340731027,1729741846260,-505.68780312,0.00059762,120]
[340731028,1729741846270,-507.22646538,0.00059762,120]
[340731029,1729741846279,-501.90838859,0.00059762,120]
[340731030,1729741846289,-516.46582435,0.00059762,120]
[340731031,1729741846299,-509.95438032,0.00059762,120]
[340731032,1729741846309,-503.85326905,0.00059762,120]
[340731033,1729741846319,-513.76993485,0.00059762,120]
[340731034,1729741846328,-311.0329,0.00059762,120]
[340731035,1729741846339,-503.83545773,0.00059762,120]
[340731036,1729741846350,-509.69014812,0.00059762,120]
[340731037,1729741846359,-492.7625815,0.00059762,120]
[340731038,1729741846369,-2042.12,0.00059762,120]
[340731039,1729741846379,-509.26756642,0.00059762,120]
[340731040,1729741846390,-521.54476357,0.00059762,120]
[340731041,1729741846400,-508.05784587,0.00059762,120]
[340731042,1729741846409,-515.96760865,0.00059762,120]
[340731043,1729741846420,-502.92430826,0.00059762,120]
[340731044,1729741846430,-500.0,0.00059762,21]
[340731045,1729741846441,-506.58556317,0.00059762,120]
[340731046,1729741846451,-500.0,0.00059762,120]
[340731047,1729741846460,-500.47,0.00059762,120]
[340731048,1729741846470,-728.41,0.00059762,120]
[340731049,1729741846480,-500.0,0.00059762,120]
[340731050,1729741846490,-543.78,0.00059762,120]
[340731051,1729741846500,-500.0,0.00059762,120]
[340731052,1729741846510,-238.31931401,0.00059762,120]
[340731053,1729741846520,-500.3853076,0.00059762,120]
[340731054,1729741846529,-500.0,0.00059762,120]
[340731055,1729741846539,-741.89,0.00059762,120]
[340731056,1729741846549,-500.0,0.00059762,120]
[340731057,1729741846559,-500.0,0.00059762,120]
[340731058,1729741846568,-500.0,0.00059762,120]
[340731059,1729741846579,-503.02680699,0.00059762,120]
[340731060,1729741846589,-37684.0534,0.00059763,2]
[340731061,1729741846599,-28382.7249,0.00059763,2]
[340731062,1729741846609,-49911.92704262,0.00059763,2]
[340731063,1729742318910,218.82860541,0.00015329,2]
[340731064,1729742676324,250.0,0.0001,2]
[340731065,1729742704789,1615.92858437,0.00015242,2]
[340731066,1729742736123,-425.89672655,0.00015342,2]
[340731067,1729742755091,-74.10327345,0.00015342,2]
[340731068,1729742755111,-500.0,0.00015342,2]
[340731069,1729742755130,-181.17932471,0.00015342,2]
[340731070,1729742755150,-171.13,0.00015342,2]
[340731071,1729742755170,-172.44066124,0.00017144,2]
[340731072,1729742755190,-91.19798449,0.00019451,2]
[340731073,1729742835097,-209.0,0.00019725,2]
[340731074,1729742835117,-195.36,0.00056715,2]
[340731075,1729742835137,-269.79479601,0.00056739,30]
[340731085,1729743031650,-158.0,0.000317,2]
[340731086,1729743031659,-3928.20520399,0.00056739,30]
[340731087,1729743031669,-150.0,0.00057533,9]
[340731088,1729743031679,-324.52332027,0.00057534,120]
[340731089,1729743031702,-268.28667973,0.00057534,120]
[340731090,1729743031711,-500.0,0.00057534,120]
[340731091,1729743031720,-476.08351961,0.00057534,120]
[340731092,1729743031732,-23.91648039,0.00057534,120]
[340731093,1729743031741,-710.45,0.00057534,120]
[340731094,1729743031751,-1078.86624706,0.00057534,120]
[340731095,1729743031809,-57.77375294,0.00057534,120]
[340731096,1729743031819,-235.64364706,0.00057534,14]
[340731155,1729743037773,-3663.67287752,0.00056,120]
[340731156,1729743037783,-86.91342104,0.00057534,14]
[340731157,1729743037792,-728.61,0.00057534,120]
[340731158,1729743037802,-500.0,0.00057534,120]
[340731159,1729743037811,-500.0,0.00057534,120]
[340731160,1729743037821,-1044.32,0.00057534,120]
[340731161,1729743037831,-250.0,0.00057999,120]
[340731162,1729743037840,-250.0,0.00058069,120]
[340731163,1729743037849,-12877.09,0.00058081,2]
[340731164,1729743037859,-500.0,0.00058084,2]
[340731165,1729743037870,-861.74,0.00058156,30]
[340731166,1729743037880,-264.89,0.00058156,2]
[340731167,1729743037889,-250.0,0.00058169,120]
[340731168,1729743037899,-169.29,0.00058217,2]
[340731169,1729743037911,-1000.0,0.00058587,120]
[340731170,1729743037920,-173.33127392,0.00058868,116]
[340731171,1729743037929,-1063.584,0.00058868,116]
[340731172,1729743037939,-154.05,0.00058904,60]
[340731173,1729743037949,-195.36,0.00058979,2]
[340731174,1729743037959,-35435.64865214,0.00059,30]
[340731175,1729743037971,-5510.06098439,0.00059,30]
[340731176,1729743037982,-1508.57123451,0.00059,30]
[340731177,1729743037993,-1300.78587739,0.00059,30]
[340731178,1729743038006,-749.86877271,0.00059,30]
[340731179,1729743038019,-4884.53117596,0.00059,30]
[340731180,1729743038030,-3020.60353949,0.00059,30]
[340731181,1729743038041,-4943.44331548,0.00059,30]
[340731182,1729743038052,-599.2800009,0.00059,30]
[340731184,1729743039872,-2170.37864793,0.00059,30]
[340731185,1729743039979,-1908.199995,0.00059,30]
[340731186,1729743039991,-1585.9563865,0.00059,30]
[340731187,1729743040002,-1406.98951982,0.00059,30]
[340731271,1729743042766,-2470.72892504,0.00059,30]
[340731272,1729743042778,-5008.50775427,0.00059,30]
[340731273,1729743042820,-785.44521847,0.00059,30]
[340731274,1729743042830,-833.3004,0.00059463,2]
[340731275,1729743042839,-211.16438053,0.00059463,2]
[340731276,1729743042926,-2288.83561947,0.00059463,2]
[340731277,1729743042936,-917.08414004,0.00059463,15]
[340731278,1729743043104,-825.32585649,0.00059463,15]
[340731279,1729743043114,-647.83,0.00059553,30]
[340731280,1729743043123,-500.0,0.00059562,120]
[340731281,1729743043133,-500.0,0.00059562,120]
[340731282,1729743043142,-500.0,0.00059562,120]
[340731283,1729743043152,-500.0,0.00059562,120]
[340731284,1729743043162,-500.0,0.00059562,120]
[340731285,1729743043171,-500.0,0.00059562,120]
[340731286,1729743043181,-342.68063749,0.00059562,120]
[340731287,1729743043190,-500.0,0.00059562,120]
[340731288,1729743043200,-377.32639712,0.00059562,120]
[340731289,1729743043209,-500.0,0.00059562,120]
[340731290,1729743043219,-500.0,0.00059562,120]
[340731291,1729743043228,-500.0,0.00059562,120]
[340731292,1729743043238,-500.0,0.00059562,120]
[340731293,1729743043247,-500.0,0.00059562,120]
[340731294,1729743043257,-500.0,0.00059562,120]
[340731295,1729743043266,-11.37721551,0.00059562,120]
[340731296,1729743043278,-488.62278449,0.00059562,120]
[340731297,1729743043288,-357.28766596,0.00059562,120]
[340731298,1729743043297,-500.0,0.00059562,120]
[340731299,1729743043306,-28382.7249,0.00059562,2]
[340731300,1729743043315,-500.0,0.00059562,120]
[340731301,1729743043325,-500.0,0.00059562,120]
[340731302,1729743043335,-667.71,0.00059562,120]
[340731303,1729743043345,-500.0,0.00059562,120]
[340731304,1729743043354,-500.0,0.00059562,120]
[340731305,1729743043364,-82495.06731258,0.00059563,2]
[340731320,1729743045654,-9210.43193781,0.00059563,2]
[340731321,1729743045762,-1363.81406113,0.00059563,2]
[340731322,1729743045819,-6930.68668848,0.00059563,2]
[340731323,1729743045831,-1000.0,0.00059563,2]
[340731324,1729743045840,-865.2824637,0.00059563,2]
[340731325,1729743045905,-441.2071363,0.00059563,2]
[340731326,1729743045917,-313.21704352,0.00059563,2]
[340731327,1729743045927,-278.05869882,0.00059626,31]
[340731328,1729743045937,-613.73673073,0.00059643,14]
[340731329,1729743045949,-2454.94692292,0.00059652,14]
[340731330,1729743045956,-383.3461757,0.00059652,120]
[340731331,1729743045964,-311.0329,0.00059652,120]
[340731332,1729743045972,-500.0,0.00059652,120]
[340731333,1729743045980,-500.0,0.00059652,120]
[340731334,1729743045988,-500.0,0.00059652,21]
[340731335,1729743045997,-500.0,0.00059652,120]
[340731336,1729743046005,-500.0,0.00059652,120]
[340731337,1729743046013,-238.31931401,0.00059652,120]
[340731338,1729743046022,-500.0,0.00059652,120]
[340731339,1729743046032,-741.89,0.00059652,120]
[340731340,1729743046039,-6137.3673073,0.00059653,14]
[340731341,1729743046047,-3648.33602908,0.00059653,12]
[340731342,1729743046057,-335.23246625,0.00059662,31]
[340731343,1729743046065,-503.19545455,0.00059662,120]
[340731344,1729743046072,-592.81,0.00059662,120]
[340731345,1729743046080,-500.0,0.00059662,120]
[340731346,1729743046088,-500.0,0.00059662,120]
[340731347,1729743046096,-504.6960775,0.00059662,120]
[340731348,1729743046103,-277.16,0.00059662,120]
[340731349,1729743046111,-504.92828584,0.00059662,120]
[340731350,1729743046119,-509.29265723,0.00059662,120]
[340731351,1729743046126,-513.28114356,0.00059662,120]
[340731352,1729743046132,-500.0,0.00059662,120]
[340731353,1729743046140,-505.78864308,0.00059662,120]
[340731354,1729743046147,-506.35308301,0.00059662,120]
[340731355,1729743046155,-500.0,0.00059662,120]
[340731356,1729743046163,-503.15052882,0.00059662,120]
[340731357,1729743046171,-552.28863824,0.00059662,120]
[340731358,1729743046177,-500.0,0.00059662,120]
[340731359,1729743046184,-624.70107462,0.00059662,120]
[340731360,1729743046191,-323.25550652,0.00059662,120]
[340731361,1729743046198,-232.65405128,0.00059662,120]
[340731362,1729743046206,-507.73298342,0.00059662,120]
[340731363,1729743046213,-502.72757821,0.00059662,120]
[340731364,1729743046220,-500.0,0.00059662,120]
[340731365,1729743046227,-500.0,0.00059662,120]
[340731366,1729743046234,-569.89999072,0.00059662,120]
[340731367,1729743046243,-506.56841068,0.00059662,120]
[340731368,1729743046252,-500.0,0.00059662,120]
[340731369,1729743046262,-500.0,0.00059662,120]
[340731370,1729743046271,-541.00372593,0.00059662,120]
[340731371,1729743046281,-523.30797997,0.00059662,120]
[340731372,1729743046291,-530.24856696,0.00059662,120]
[340731373,1729743046300,-567.20046584,0.00059662,120]
[340731374,1729743046310,-312.93326007,0.00059662,120]
[340731375,1729743046319,-500.0,0.00059662,120]
[340731376,1729743046329,-505.68780312,0.00059662,120]
[340731377,1729743046338,-503.7462483,0.00059662,120]
[340731378,1729743046347,-507.22646538,0.00059662,120]
[340731379,1729743046356,-509.95438032,0.00059662,120]
[340731380,1729743046366,-503.85326905,0.00059662,120]
[340731381,1729743046375,-501.90838859,0.00059662,120]
[340731382,1729743046385,-503.83545773,0.00059662,120]
[340731383,1729743046395,-509.69014812,0.00059662,120]
[340731384,1729743046405,-516.46582435,0.00059662,120]
[340731385,1729743046415,-513.76993485,0.00059662,120]
[340731386,1729743046425,-1111.05,0.00059662,120]
[340731387,1729743046436,-492.7625815,0.00059662,120]
[340731388,1729743046450,-509.26756642,0.00059662,120]
[340731389,1729743046461,-2042.12,0.00059662,120]
[340731390,1729743046473,-521.54476357,0.00059662,120]
[340731391,1729743046484,-515.96760865,0.00059662,120]
[340731392,1729743046494,-508.05784587,0.00059662,120]
[340731393,1729743046506,-502.92430826,0.00059662,120]
[340731394,1729743046515,-506.58556317,0.00059662,120]
[340731395,1729743046527,-500.0,0.00059662,120]
[340731396,1729743046537,-710.45,0.00059662,120]
[340731397,1729743046547,-1136.64,0.00059662,120]
[340731398,1729743046556,-500.3853076,0.00059662,120]
[340731399,1729743046566,-500.0,0.00059662,120]
[340731400,1729743046584,-500.0,0.00059662,120]
[340731401,1729743046593,-500.0,0.00059662,120]
[340731402,1729743046602,-503.02680699,0.00059662,120]
[340731403,1729743046612,-728.61,0.00059662,120]
[340731404,1729743046621,-500.0,0.00059662,120]
[340731405,1729743046631,-500.0,0.00059662,120]
[340731406,1729743046644,-500.0,0.00059662,120]
[340731407,1729743046653,-500.0,0.00059662,120]
[340731408,1729743046662,-500.0,0.00059662,120]
[340731409,1729743046672,-646.19293365,0.00059662,120]
[340731410,1729743046681,-500.0,0.00059662,120]
[340731411,1729743046691,-500.0,0.00059662,21]
[340731412,1729743046706,-339.66766268,0.00059662,120]
[340731413,1729743046715,-500.0,0.00059662,120]
[340731414,1729743046724,-500.0,0.00059662,120]
[340731415,1729743046734,-584.12992729,0.00059662,120]
[340731416,1729743046744,-500.0,0.00059662,120]
[340731417,1729743046754,-500.0,0.00059662,120]
[340731418,1729743046763,-500.0,0.00059662,120]
[340731419,1729743046773,-500.0,0.00059662,120]
[340731420,1729743046783,-500.0,0.00059662,120]
[340731421,1729743046792,-500.0,0.00059662,120]
[340731422,1729743046801,-500.0,0.00059662,120]
[340731423,1729743046811,-500.0,0.00059662,120]
[340731424,1729743046820,-667.71,0.00059662,120]
[340731425,1729743046830,-500.0,0.00059662,120]
[340731426,1729743046839,-500.0,0.00059662,120]
[340731427,1729743046848,-500.0,0.00059662,120]
[340731428,1729743046858,-500.0,0.00059662,120]
[340731429,1729743046868,-500.0,0.00059662,120]
[340731430,1729743046879,-500.0,0.00059662,120]
[340731431,1729743046888,-1000.0,0.00059662,120]
[340731432,1729743046897,-1044.32,0.00059662,120]
[340731433,1729743046907,-500.0,0.00059662,120]
[340731434,1729743046916,-500.0,0.00059662,120]
[340731435,1729743046925,-4822.64,0.00059662,120]
[340731436,1729743046934,-500.0,0.00059662,120]
[340731437,1729743046944,-500.0,0.00059662,120]
[340731438,1729743046953,-741.89,0.00059662,120]
[340731439,1729743046962,-4020.4472,0.00059663,2]
[340731440,1729743046970,-75732.35749264,0.00059663,2]
[340731441,1729743493432,151.3,0.00024,60]
[340731442,1729743797024,1615.92858437,0.00015242,2]
[340731443,1729743843189,218.82860541,0.00015329,2]
[340731444,1729743956625,3564.14197189,6.94e-05,2]
[340731445,1729744033118,-172.02,0.00015342,2]
[340731446,1729744033142,-164.6,0.00015342,2]
[340731447,1729744033163,-513.30884916,0.000159,2]
[340731453,1729744208544,-9.84022811,0.000159,2]
[340731470,1729744231790,-300.0,0.00019725,2]
[340731471,1729744231799,-382.49820459,0.00041004,2]
[340731472,1729744231810,-302.76640641,0.00041004,2]
[340731473,1729744231819,-150.0,0.00041211,4]
[340731474,1729744231829,-504.0,0.00041212,30]
[340731475,1729744231838,-615.11316746,0.00041212,10]
[340731476,1729744231851,-986.37026485,0.00041212,10]
[340731477,1729744231903,-277.62159607,0.00041212,10]
[340731478,1729744231914,-2129.3218492,0.00041212,10]
[340731479,1729744231925,-7364.30568255,0.00041212,10]
[340731481,1729744239015,-4844.914274,0.00041212,10]
[340731482,1729744239071,-575.61,0.00041212,10]
[340731483,1729744239083,-782.53154917,0.00041212,10]
[340731484,1729744239093,-276.73994888,0.00041212,10]
[340731485,1729744239106,-65402.79997696,0.00041212,10]
[340731486,1729744239115,-1031.35136215,0.00041212,2]
[340731487,1729744239124,-241.21,0.00045926,2]
[340731488,1729744239134,-152.0,0.00054596,3]
[340731489,1729744239145,-222.26,0.00055543,2]
[340731490,1729744239155,-1852.42,0.00056622,2]
[340731491,1729744239165,-200.0,0.00057329,2]
[340731492,1729744239175,-250.0,0.00057329,120]
[340731493,1729744239185,-250.0,0.00057486,120]
[340731494,1729744239194,-222.26,0.00057807,2]
[340731495,1729744239204,-150.23,0.00058023,2]
[340731496,1729744239214,-150.23,0.00058071,2]
[340731497,1729744239223,-150.23,0.0005812,2]
[340731498,1729744239233,-179.38,0.00058128,2]
[340731499,1729744239242,-150.23,0.00058168,2]
[340731500,1729744239251,-156.21,0.00058198,120]
[340731501,1729744239260,-150.23,0.00058217,2]
[340731502,1729744239269,-1000.0,0.00058262,120]
[340731503,1729744239278,-150.23,0.00058265,2]
[340731504,1729744239288,-150.23,0.00058313,2]
[340731505,1729744239297,-40.17852491,0.00058615,2]
[340731533,1729744242971,-835.97,0.00057345,30]
[340731534,1729744242981,-112.66147509,0.00058615,2]
[340731535,1729744242990,-2208.97885547,0.0005868,2]
[340731536,1729744243001,-733.9637252,0.0005868,2]
[340731539,1729744245732,-8767.16080243,0.0005868,2]
[340731540,1729744245818,-14452.0195169,0.0005868,2]
[340731541,1729744245828,-4020.4472,0.0005868,2]
[340731542,1729744245837,-2433.65104481,0.0005868,15]